Cogmind - Beta 17 @@@ ROGUE MODE // 2026.08.26 @ 03:41:49 Player: CONM Result: Destroyed by Y-64 Sentinel with Wave Gun Performance ------------- Evolutions (5) 2500 Regions Visited (7) 1400 Robots Destroyed (17) 85 Value Destroyed (549) 549 Prototype IDs (1) 20 Alien Tech Used (0) 0 Bonus (800) 800 TOTAL SCORE: 5354 Bonus ------- Registered with UFD 300 Met Optimus in HQ 500 Cogmind --------- Core Integrity 0/1000 Matter 213/300 Energy 100/100 System Corruption 8% Temperature Cool (9) Movement Core (50) Location -5/Upper Caves Parts ------- > --- POWER (1) -------- (None) > --- PROPULSION (4) --- (None) > --- UTILITY (9) ------ Advanced System Shield > --- WEAPON (3) ------- Makeshift Hammer > --- INVENTORY (5) ---- Advanced Weight Redist. System Advanced Targeting Computer Improved Medium Armor Plating Improved Hardlight Generator Improved Remote Datajack Peak State ------------ > --- POWER ------------ Neutrino Core > --- PROPULSION ------- Gravmag System Gyrokinetic Inverter Linear Gravjet Linear Gravjet > --- UTILITY ---------- Advanced Cooling System Small Storage Unit Advanced Weight Redist. System Improved Sensor Array Improved Signal Interpreter Advanced Melee Analysis Suite Advanced Melee Analysis Suite Improved Medium Armor Plating Focal Shield > --- WEAPON ----------- EM Shotgun Wave Gun Makeshift Sword > --- INVENTORY -------- Light Nuclear Core Armored Wheel Advanced Weight Redist. System Medium Armor Plating Improved Medium Armor Plating Advanced Shield Generator Rocket Launcher Improved Remote Datajack [Rating: 77] Favorites ----------- Power Light Ion Engine Engine Light Ion Engine Power Core Neutrino Core Propulsion Improved Titanium Leg Leg Improved Titanium Leg Wheel Armored Wheel Hover Unit Linear Gravjet Utility Small Storage Unit Device Reaction Control System Storage Small Storage Unit Processor Advanced Melee Analysis Suite Hackware Advanced Hacking Suite Protection Improved Medium Armor Plating Weapon EM Shotgun Energy Gun EM Shotgun Ballistic Gun Light Assault Rifle Launcher Rocket Launcher Impact Weapon Makeshift Hammer Slashing Weapon Makeshift Sword Build | -11 -10 -10 -10 -7 -7 -5 -5 ------- Run | Yrd Mat Min Sub Rec Scr Fac Upp Slots Evolved 10 | . . . . . . 10 . Power . | . . . . . . . . Propulsion 2 | . . . . . . 2 . Utility 7 | . . . . . . 7 . Weapon 1 | . . . . . . 1 . Parts Attached 44 | 7 1 1 1 7 3 20 4 Power 4 | 1 . . . 1 . 2 . Engine 2 | 1 . . . 1 . . . Core 2 | . . . . . . 2 . Reactor . | . . . . . . . . Propulsion 12 | 2 . . . 2 2 5 1 Treads . | . . . . . . . . Leg 4 | 2 . . . 2 . . . Wheel 1 | . . . . . . . 1 Hover 7 | . . . . . 2 5 . Flight . | . . . . . . . . Utility 19 | 2 1 1 . 2 . 12 1 Device 9 | 1 . 1 . 1 . 6 . Storage 1 | 1 . . . . . . . Processor 5 | . 1 . . . . 4 . Hackware 2 | . . . . . . 1 1 Protection 2 | . . . . 1 . 1 . Artifact . | . . . . . . . . Weapon 9 | 2 . . 1 2 1 1 2 Energy Gun 2 | . . . . 1 . 1 . Energy Cannon . | . . . . . . . . Ballistic Gun 2 | 2 . . . . . . . Ballistic Cannon . | . . . . . . . . Launcher 2 | . . . 1 . . . 1 Special Weapon . | . . . . . . . . Impact Weapon 1 | . . . . . . . 1 Slashing Weapon 2 | . . . . 1 1 . . Piercing Weapon . | . . . . . . . . Special Melee Weapon . | . . . . . . . . Unidentified Prototypes 1 | . . 1 . . . . . Parts Lost 17 | . . 1 3 . . 9 4 Power 3 | . . 1 . . . 1 1 Propulsion 6 | . . . 1 . . 4 1 Utility 5 | . . . 1 . . 3 1 Weapon 3 | . . . 1 . . 1 1 Highest Loss Streak 4 | . . 1 3 . . 2 4 To Critical Strikes . | . . . . . . . . Average Backups 7 | 1 6 8 7 7 8 7 5 Power . | . 1 1 1 . 1 . . Propulsion 2 | . 1 2 2 2 3 1 . Utility 1 | . 1 1 1 1 1 3 4 Weapon 1 | . 1 2 2 2 2 1 . Tool/Special . | . . . . . . . . Unused Backups 12 | . . 1 . . 2 4 5 Power . | . . . . . . . . Propulsion 1 | . . . . . 1 . . Utility 7 | . . 1 . . . 2 4 Weapon 2 | . . . . . 1 1 . Tool/Special 2 | . . . . . . 1 1 Average Slot Usage (%) 90 | . 100 93 60 87 100 83 14 Engine 9 | . 14 7 . 11 14 . . Core 1 | . . . . . . 4 . Leg 19 | . 28 28 17 26 26 . . Hover 4 | . . . . . 1 17 . Device 13 | . 8 9 7 12 14 18 2 Storage 11 | . 14 14 14 14 14 5 1 Processor 4 | . 5 4 . . . 14 4 Energy Gun 9 | . . . . 11 14 7 . Ballistic Gun 4 | . 28 28 10 . . . . Slashing Weapon 8 | . . . . 8 14 5 1 Peak Build Rating 77 | 9 10 16 15 19 20 77 51 Average Rating 26 | 5 8 12 9 16 19 64 11 On Entrance 15 | . 9 8 15 5 19 19 51 Avg Prop Armor Cover (%) 3 | . . . . . 8 3 . Naked Turns 129 | . . . . . . . 129 Heaviest Build 40 | 11 11 11 11 15 15 40 22 Greatest Support 47 | 20 20 20 20 32 32 47 21 Greatest Overweight (x) 4 | . . . 1 . 1 4 1 Average Overweight (x) . | . . . . . . . . Largest Inventory Capacity 8 | 8 8 8 8 8 8 8 8 Average Capacity 7 | 7 8 8 8 8 8 8 5 Most Carried 8 | 2 8 8 8 8 8 8 7 Average Carried 7 | 1 6 7 7 7 7 7 5 Final Capacity 8 | 8 8 8 8 8 8 8 5 Final Carried 8 | 2 8 8 7 8 8 7 5 Class Distribution -------------------- 99% | Mutant Dominant Class ---------------- Mutant | -10/Materials Mutant | -10/Mines Mutant | -10/Subcaves Mutant | -7/Recycling Mutant | -7/Scraptown Mutant | -5/Factory Mutant | -5/Upper Caves Resources | -11 -10 -10 -10 -7 -7 -5 -5 ----------- Run | Yrd Mat Min Sub Rec Scr Fac Upp Matter Collected 686 | 205 57 92 9 151 10 120 42 Remotely . | . . . . . . . . Salvage Created 462 | 39 141 92 19 . . 171 . Parts 32 | 5 5 2 7 . . 13 . Haulers Intercepted . | . . . . . . . . Recyclers Shooed . | . . . . . . . . Parts Field Recycled . | . . . . . . . . Retrieved Matter . | . . . . . . . . Parts Self-Destructed 9 | . . . 9 . . . . Prevented . | . . . . . . . . Parts Restored . | . . . . . . . . Kills | -11 -10 -10 -10 -7 -7 -5 -5 ------- Run | Yrd Mat Min Sub Rec Scr Fac Upp Combat Hostiles Destroyed 11 | . 3 2 3 . . 3 . Melee 3 | . . . . . . 3 . Guns 5 | . 3 2 . . . . . AOE 3 | . . . 3 . . . . Classes Destroyed 6 | 1 2 . 2 . . 1 . Tunneler 2 | 2 . . . . . . . Operator 2 | . 1 . . . . 1 . Turret 2 | . . . 2 . . . . Swarmer 3 | . . . 3 . . . . Grunt 5 | . 3 2 . . . . . Programmer 3 | . . . . . . 3 . Best Kill Streak 5 | 1 2 1 5 . . 2 . Combat Bots Only 3 | . 2 1 3 . . 2 . Max Kills in Single Turn 3 | 1 1 1 3 . . 1 . Gunslinging . | . . . . . . . . Exploded 3 | . . . 3 . . . . Melee 1 | . . . . . . 1 . Uniques/NPCs Destroyed . | . . . . . . . . Combat | -11 -10 -10 -10 -7 -7 -5 -5 -------- Run | Yrd Mat Min Sub Rec Scr Fac Upp Hostile Shots Fired 261 | . 16 23 47 . 14 70 91 Missed 103 | . 5 4 23 . 10 29 32 Hits 158 | . 11 19 24 . 4 41 59 Projectile 158 | . 11 19 24 . 4 41 59 AOE 4 | . . . . . . 4 . Critical Strikes 2 | . . 1 . . . 1 . Part Disruptions 1 | . . . . . . 1 . Damage Taken 2704 | . 192 245 177 . 81 1011 998 Core 1205 | . 70 42 42 . 41 149 861 Absorbed by Shields 6 | . . . . . . 6 . Core Remaining (%) 61 | 100 . . . . 22 . . Volleys Fired 55 | 8 20 19 7 . . 1 . Largest 2 | 2 2 2 1 . . 2 . Hottest 126 | 40 40 40 33 . . 126 . Shots Fired 103 | 16 40 38 7 . . 2 . Gun 96 | 16 40 38 . . . 2 . Cannon . | . . . . . . . . Launcher 7 | . . . 7 . . . . Special . | . . . . . . . . Kinetic 94 | 16 40 38 . . . . . Thermal 1 | . . . . . . 1 . Explosive 7 | . . . 7 . . . . Electromagnetic 1 | . . . . . . 1 . Robot Hit Streak 10 | 4 10 5 6 . . 2 . Robot Miss Streak 7 | 3 7 3 1 . . 1 . Penetration Max . | . . . . . . . . Secondary Targets 1 | . 1 . . . . . . Max Gunslinging Chain 1 | . 1 . . . . . . Shots Hit Robots 78 | 9 27 24 6 . . 12 . Core Hits 40 | 4 11 7 9 . . 9 . Critical Kills . | . . . . . . . . Critical Parts Destroyed . | . . . . . . . . Critical Strikes 1 | . . . . . . 1 . Sever 1 | . . . . . . 1 . Melee Attacks 50 | . . . . 1 5 42 2 Impact . | . . . . . . . . Slashing 50 | . . . . 1 5 42 2 Piercing . | . . . . . . . . Sneak Attacks . | . . . . . . . . Combat Hostiles . | . . . . . . . . Follow-up Attacks . | . . . . . . . . Damage Inflicted 1235 | 70 233 199 292 . . 441 . Guns 528 | 70 233 194 . . . 31 . Cannons . | . . . . . . . . Explosions 292 | . . . 292 . . . . Melee 410 | . . . . . . 410 . Ramming 5 | . . 5 . . . . . Kinetic 497 | 70 233 194 . . . . . Thermal 23 | . . . . . . 23 . Explosive 292 | . . . 292 . . . . Electromagnetic 8 | . . . . . . 8 . Impact . | . . . . . . . . Slashing 410 | . . . . . . 410 . Piercing . | . . . . . . . . Highest Corruption 8 | . . . . . . 7 8 Average Corruption 5 | . . . . . . 5 7 Corruption Purged . | . . . . . . . . Corruption Blocked . | . . . . . . . . Effects 11 | . . . . . . 7 4 Message Errors 3 | . . . . . . 2 1 Matter Fused 2 | . . . . . . 1 1 Heat Flow Errors 1 | . . . . . . . 1 Energy Discharges 2 | . . . . . . 1 1 Data Loss (minor) 2 | . . . . . . 2 . Data Loss (major) 1 | . . . . . . 1 . Overload Shots . | . . . . . . . . Overflow Damage 18 | . . . . . . 18 . Projectiles . | . . . . . . . . Explosions . | . . . . . . . . Melee 18 | . . . . . . 18 . Knockbacks . | . . . . . . . . Impact . | . . . . . . . . Kinetic . | . . . . . . . . Secondary . | . . . . . . . . Self-Inflicted Damage . | . . . . . . . . Shots . | . . . . . . . . Rammed . | . . . . . . . . Targets Rammed 2 | . . 2 . . . . . Kicked 2 | . . 2 . . . . . Crushed . | . . . . . . . . Highest Temperature 133 | . 12 27 . . . 86 133 Average Temperature 7 | . 7 11 . . . 4 73 Received Heat Transfer 519 | . 66 159 132 . 48 60 54 Siege Activations . | . . . . . . . . Martial Activations . | . . . . . . . . Shielding Activations . | . . . . . . . . Robots Disrupted . | . . . . . . . . Combat Hostiles . | . . . . . . . . Robots Corrupted . | . . . . . . . . Combat Hostiles . | . . . . . . . . Parts Fried . | . . . . . . . . Impact Corruptions . | . . . . . . . . Robots Melted . | . . . . . . . . Combat Hostiles . | . . . . . . . . Parts Melted . | . . . . . . . . Heat Transferred 37 | . . . . . . 37 . Parts Sabotaged . | . . . . . . . . Parts Stolen . | . . . . . . . . Parts Stripped . | . . . . . . . . Power Chain Reactions . | . . . . . . . . Alert | -11 -10 -10 -10 -7 -7 -5 -5 ------- Run | Yrd Mat Min Sub Rec Scr Fac Upp Maximum Alert Level . | . . . . . . . . Low Security (%) 100 | 100 100 100 . 100 . 100 . Level 1 . | . . . . . . . . Level 2 . | . . . . . . . . Level 3 . | . . . . . . . . Level 4 . | . . . . . . . . Level 5 . | . . . . . . . . High Security . | . . . . . . . . Max Security . | . . . . . . . . Peak Influence 99 | 5 40 45 . 52 . 99 . Initial 48 | . 3 3 . 48 . . . Average 21 | . 14 4 . 8 . 40 . Influence Increases 852 | 10 89 65 130 15 . 438 105 Destroy 0b10 Robot/C 260 | . 60 40 100 . . 60 . Destroy 0b10 Robot/NC 20 | 10 5 . . . . 5 . Destroy Leader 40 | . 20 10 . . . 10 . Successful Hack 18 | . 4 . . 14 . . . Disable Machine 30 | . . . . . . 30 . Destroy Structure 49 | . . . . 1 . 48 . Lose Combat Pursuer 435 | . . 15 30 . . 285 105 Influence Decreases 807 | 5 84 75 30 115 . 438 60 Entered New Map 61 | . 2 7 . 52 . . . Time Decay 630 | 5 82 58 10 63 . 352 60 Lost Part 116 | . . 10 20 . . 86 . Squads Dispatched 8 | . 2 . . . . 6 . Investigation 3 | . 1 . . . . 2 . Extermination 2 | . . . . . . 2 . Reinforcement 3 | . 1 . . . . 2 . Assault . | . . . . . . . . Garrison . | . . . . . . . . Intercept . | . . . . . . . . Searches Triggered . | . . . . . . . . Construction Impeded . | . . . . . . . . Haulers Reinforced . | . . . . . . . . Active Scanning Responses . | . . . . . . . . Cargo Convoy Interrupts . | . . . . . . . . Stealth | -11 -10 -10 -10 -7 -7 -5 -5 --------- Run | Yrd Mat Min Sub Rec Scr Fac Upp Distress Signals 3 | . . 1 . . . 2 . Communications Jammed . | . . . . . . . . Distress Signals . | . . . . . . . . Times Spotted 66 | . 7 3 8 . 5 30 13 Peak Tracking Total 7 | . 2 2 5 . 4 5 7 Tactical Retreats 15 | . . 1 1 . . 11 2 Traps | -11 -10 -10 -10 -7 -7 -5 -5 ------- Run | Yrd Mat Min Sub Rec Scr Fac Upp Traps Triggered 5 | . 3 . . . . 2 . Indirectly . | . . . . . . . . Trap Hack Attempts . | . . . . . . . . Triggered . | . . . . . . . . Disarmed . | . . . . . . . . Reprogrammed . | . . . . . . . . Reused . | . . . . . . . . Traps Extracted . | . . . . . . . . Installed . | . . . . . . . . Triggered . | . . . . . . . . Machines | -11 -10 -10 -10 -7 -7 -5 -5 ---------- Run | Yrd Mat Min Sub Rec Scr Fac Upp Machines Disabled 6 | . . . 4 . . 2 . Max in Single Turn 3 | . . . 3 . . 1 . Garrison Access 1 | . . . . . . 1 . Machines Repaired . | . . . . . . . . Machines Dismantled . | . . . . . . . . Machines Sabotaged . | . . . . . . . . Overloaded Fab Kills . | . . . . . . . . Hacking | -11 -10 -10 -10 -7 -7 -5 -5 --------- Run | Yrd Mat Min Sub Rec Scr Fac Upp Machines Accessed 16 | . 2 . . 4 3 7 . Terminals 8 | . 1 . . 4 . 3 . Fabricators . | . . . . . . . . Repair Stations . | . . . . . . . . Recycling Units 4 | . 1 . . . . 3 . Scanalyzers . | . . . . . . . . Garrison Access 1 | . . . . . . 1 . Total Hacks 52 | . 3 . . 7 30 12 . Successful 38 | . 3 . . 1 30 4 . Failed 14 | . . . . 6 . 8 . Catastrophic 3 | . . . . 1 . 2 . Database Lockouts . | . . . . . . . . Manual 17 | . 3 . . 3 . 11 . Terminals 15 | . 2 . . 7 . 6 . Fabricators . | . . . . . . . . Repair Stations . | . . . . . . . . Recycling Units 6 | . 1 . . . . 5 . Scanalyzers . | . . . . . . . . Garrison Access 1 | . . . . . . 1 . Terminal Hacks 30 | . . . . . 30 . . Record 30 | . . . . . 30 . . Fabricator Hacks . | . . . . . . . . Repair Station Hacks . | . . . . . . . . Recycling Unit Hacks 1 | . 1 . . . . . . Report Inventory 1 | . 1 . . . . . . Scanalyzer . | . . . . . . . . Garrison Access Hacks 1 | . . . . . . 1 . Seal Access 1 | . . . . . . 1 . Unauthorized Hacks 6 | . 2 . . 1 . 3 . Terminals 4 | . 2 . . 1 . 1 . Botnet 3 | . 1 . . 1 . 1 . Skim 1 | . 1 . . . . . . Fabricators . | . . . . . . . . Repair Stations . | . . . . . . . . Recycling Units 2 | . . . . . . 2 . Fedlink 2 | . . . . . . 2 . Scanalyzers . | . . . . . . . . Garrison Access . | . . . . . . . . Data Cores Recovered . | . . . . . . . . Used . | . . . . . . . . Hacking Detections 11 | . 2 . . 4 . 5 . Full Trace Events . | . . . . . . . . Feedback Events . | . . . . . . . . Feedback Blocked . | . . . . . . . . Robot Schematics Acquired . | . . . . . . . . Robots Built . | . . . . . . . . Authchips . | . . . . . . . . Time . | . . . . . . . . Total Robot Build Rating . | . . . . . . . . Part Schematics Acquired . | . . . . . . . . Parts Built . | . . . . . . . . Authchips . | . . . . . . . . Time . | . . . . . . . . Total Part Build Rating . | . . . . . . . . Part Studies Acquired . | . . . . . . . . Parts Repaired . | . . . . . . . . Time . | . . . . . . . . Parts Recycled . | . . . . . . . . Recycled Matter . | . . . . . . . . Retrieved Matter . | . . . . . . . . Retrieved Components . | . . . . . . . . Parts Scanalyzed . | . . . . . . . . Part Schematics Acquired . | . . . . . . . . Parts Damaged . | . . . . . . . . Bothacking | -11 -10 -10 -10 -7 -7 -5 -5 ------------ Run | Yrd Mat Min Sub Rec Scr Fac Upp Used RIF Installer . | . . . . . . . . Robots Hacked . | . . . . . . . . Non-combat . | . . . . . . . . Combat . | . . . . . . . . Robot Hacks Applied . | . . . . . . . . Relay Couplers Released . | . . . . . . . . Fabnet Peak Effective % . | . . . . . . . . Robots Rewired . | . . . . . . . . Allies Hacked . | . . . . . . . . Hacks Repelled . | . . . . . . . . Allies | -11 -10 -10 -10 -7 -7 -5 -5 -------- Run | Yrd Mat Min Sub Rec Scr Fac Upp Total Allies . | . . . . . . . . Largest Group . | . . . . . . . . Highest-Rated Group . | . . . . . . . . Highest-Rated Ally . | . . . . . . . . Initial UFD Resources 51 | . . . . . . 37 51 Total Orders . | . . . . . . . . Ally Attacks . | . . . . . . . . Total Damage . | . . . . . . . . Kills . | . . . . . . . . Allies Corrupted . | . . . . . . . . Allies Melted . | . . . . . . . . Intel | -11 -10 -10 -10 -7 -7 -5 -5 ------- Run | Yrd Mat Min Sub Rec Scr Fac Upp Active Infowar (turns) 1251 | 7 138 304 14 . . 753 35 Optics 232 | . . . . . . 197 35 Sensors 817 | . . 304 14 . . 499 . Terrain 145 | 7 138 . . . . . . Triangulation 625 | . . . . . . 593 32 Robot Analysis Total . | . . . . . . . . Derelict Logs Recovered 3 | . . 3 . . . . . Drone Launches . | . . . . . . . . Drone Recoveries . | . . . . . . . . Exploration | -11 -10 -10 -10 -7 -7 -5 -5 ------------- Run | Yrd Mat Min Sub Rec Scr Fac Upp Turns Passed 4932 | 235 243 455 33 477 2241 1065 183 Spaces Moved 4747 | 92 147 327 15 408 2095 1341 322 Core 313 | 4 . . . . . 6 303 Treads . | . . . . . . . . Legs 2923 | 88 147 327 15 408 1938 . . Wheels 1 | . . . . . . . 1 Hover 1510 | . . . . . 157 1335 18 Flight . | . . . . . . . . Fastest Speed 40 | 50 120 120 120 110 56 40 50 Average Speed 89 | 116 120 120 124 111 106 51 53 Slowest Speed 250 | 120 120 120 190 125 130 250 120 Overloaded Moves . | . . . . . . . . Propulsion Burnouts . | . . . . . . . . Robots Hopped . | . . . . . . . . Potential Cave-ins . | . . . . . . . . Cave-ins Triggered . | . . . . . . . . Exploration Rate (%) 47 | 5 32 74 2 90 91 31 58 Regions Visited 7 Branch Regions 5 Pre-discovered Areas 5 | . . . . . 4 1 . Known Exits Taken 2 | . 1 . . . . 1 . Unknown Exits Taken 5 | 1 . 1 1 1 1 . . Scrap Searched 9 | . . . . . 8 . 1 Spaces Dug 29 | . . . . 1 4 24 . Terrain Destroyed 51 | . . . 22 1 4 24 . Melee 29 | . . . . 1 4 24 . Projectile . | . . . . . . . . AOE 22 | . . . 22 . . . . Terrain Rammed . | . . . . . . . . Walls Destroyed . | . . . . . . . . Machines Disabled . | . . . . . . . . Actions | -11 -10 -10 -10 -7 -7 -5 -5 --------- Run | Yrd Mat Min Sub Rec Scr Fac Upp Total 5299 | 203 181 359 23 428 2110 1667 328 Wait 348 | 95 7 8 . 11 1 226 . Move 4740 | 91 146 326 14 407 2094 1340 322 Hop . | . . . . . . . . Pick Up 21 | 2 6 1 . 1 3 8 . Fast Attach 31 | 7 1 1 . 3 . 17 2 Attach 8 | . . . 1 2 . 3 2 Detach 2 | . . . . 1 . 1 . Swap 9 | . . . . 2 3 4 . Drop 20 | . 1 2 1 . 4 12 . Fire 55 | 8 20 19 7 . . 1 . Melee 50 | . . . . 1 5 42 2 Ram . | . . . . . . . . Kick 2 | . . 2 . . . . . Crush . | . . . . . . . . Escape Stasis 13 | . . . . . . 13 . Rewire . | . . . . . . . . Trap . | . . . . . . . . Miscellaneous . | . . . . . . . . Route ------- -11/Scrapyard -10/Materials (discovered 2 exits: *Mat / *Min) -10/Mines (discovered 2 exits: *Mat / [*Sub]) -10/Subcaves -7/Recycling (discovered 2 exits: *Fac / *Scr) -7/Scraptown (discovered 2 exits: *Fac x2) -5/Factory (discovered 5 exits: Fac x4 / *Upp) -5/Upper Caves (discovered 1 exit: Upp) History --------- Turn | Location | Event 18 | -11/Scrapyard | Discovered new exit (range 16) 236 | -11/Scrapyard | Entered Materials 307 | -10/Materials | Build established: Mutant 446 | -10/Materials | Discovered new exit (range 10) 455 | -10/Materials | Discovered new exit (range 8) 469 | -10/Materials | Identified exit to Materials 476 | -10/Materials | Identified exit to Mines 479 | -10/Materials | Entered Mines 487 | -10/Mines | Learned Materials emergency access door positions 570 | -10/Mines | Received a Rocket Launcher from a helpful Derelict 627 | -10/Mines | Found a damaged Exp. Sensor Array with a note attached 630 | -10/Mines | Found Prototype Device 630 | -10/Mines | Identified Exp. Sensor Array 642 | -10/Mines | Learned Materials security intel 771 | -10/Mines | Discovered exit to Materials (range 11) 879 | -10/Mines | Learned Materials non-interactive machine intel 928 | -10/Mines | Discovered new exit (range 7) 934 | -10/Mines | Entered Subcaves 934 | -10/Subcaves | Discovered new exit (range 12) 935 | -10/Subcaves | Approached by a straggling Scientist 937 | -10/Subcaves | Core integrity fell below 50% 967 | -10/Subcaves | Entered Recycling 968 | -7/Recycling | Met a Zionite searching for Scraptown 979 | -7/Recycling | Lost 3 parts (1n1u1w) 1262 | -7/Recycling | Discovered new exit (range 16) 1415 | -7/Recycling | Scanned before Scraplab entrance 1431 | -7/Recycling | Entered Scraplab 1441 | -7/Recycling | Discovered new exit (range 3) 1444 | -7/Recycling | Entered Scraptown 1583 | -7/Scraptown | Visited UFD Registry 1614 | -7/Scraptown | Heard Great Nut preacher, LISTEN AND RECITE! 1616 | -7/Scraptown | Visited TADAMA 1618 | -7/Scraptown | Received an X-ray algorithm 1756 | -7/Scraptown | Discovered new exit (range 13) 1840 | -7/Scraptown | Visited The Evicted 2077 | -7/Scraptown | Registered with UFD as "Fiberguard" 2145 | -7/Scraptown | Visited Observation Area 2161 | -7/Scraptown | Visited Curators Association 2193 | -7/Scraptown | Visited Chapter 10 2219 | -7/Scraptown | Visited DA-N13 Charitable Foundation 2238 | -7/Scraptown | Visited Scrapoid Research Area 2259 | -7/Scraptown | Visited Supply Room 2282 | -7/Scraptown | Visited Abandonware Association 2302 | -7/Scraptown | Visited Scrapoid Pod Storage 2361 | -7/Scraptown | Visited IN-MT5's Study 2385 | -7/Scraptown | Visited Bundlers 2765 | -7/Scraptown | Visited Cartography Club 3030 | -7/Scraptown | Visited SPCMW 3577 | -7/Scraptown | Found DCF Scrap (28 items) 3616 | -7/Scraptown | Met Optimus 3616 | -7/Scraptown | Accepted into 0bPrime 3652 | -7/Scraptown | Discovered new exit (range 5) 3654 | -7/Scraptown | Civil war broke out across Scraptown 3666 | -7/Scraptown | Learned location of Storage (-7) 3666 | -7/Scraptown | Learned location of Warlord (-5) 3666 | -7/Scraptown | Learned location of Armory (-3) 3666 | -7/Scraptown | Learned location of Quarantine (-2) 3666 | -7/Scraptown | Learned 20 Factory zone layouts 3666 | -7/Scraptown | Learned 8 Research zone layouts 3666 | -7/Scraptown | Learned 16 Research zone layouts 3666 | -7/Scraptown | Learned 8 Access zone layouts 3666 | -7/Scraptown | Learned 8 Lower Caves zone layouts 3666 | -7/Scraptown | Learned 20 Lower Caves zone layouts 3666 | -7/Scraptown | Learned 16 Upper Caves zone layouts 3666 | -7/Scraptown | Learned 24 Upper Caves zone layouts 3666 | -7/Scraptown | Learned 8 Proximity Caves zone layouts 3666 | -7/Scraptown | Learned 4 Hub_04(d) zone layouts 3666 | -7/Scraptown | Learned location of 3 exits from Factory 3666 | -7/Scraptown | Learned location of 1 exit from Proximity Caves 3685 | -7/Scraptown | Entered Factory 3685 | -5/Factory | Evolved 10 slots: Propulsion x2, Utility x7, Weapon x1 3686 | -5/Factory | Identified exit to Factory 3688 | -5/Factory | Identified exit to Upper Caves 3707 | -5/Factory | Lost 5 allies 3775 | -5/Factory | Loaded intel: 8 recycling unit locations 4157 | -5/Factory | Spotted B-75 Beast 4709 | -5/Factory | Learned location of Protoforge (-2) 4750 | -5/Factory | Entered Upper Caves 4751 | -5/Upper Caves | Identified exit to Upper Caves 4773 | -5/Upper Caves | Attracted the attention of an 0b10 base 4785 | -5/Upper Caves | Released all parts (9) 4813 | -5/Upper Caves | Lost 4 parts (1p1n1u1w) 4831 | -5/Upper Caves | Core integrity fell below 50% 4879 | -5/Upper Caves | Core integrity fell below 20% 4933 | -5/Upper Caves | Attracted the attention of an 0b10 checkpoint 4933 | -5/Upper Caves | Destroyed by Y-64 Sentinel with Wave Gun Last Messages --------------- 04839_ Slug penetrates Wall. 04861_ H= 9E%:LX5NRCH>N6%, 04913_ Searching scrap... 04913_ Found Matter Compressor. 04913_ Found Adv. System Shield. 04913_ Found Mak. Hammer. 04913_ Found Hvy. Mace. 04913_ Found 42 Matter. 04914_ Acquired Adv. System Shield. 04915_ Acquired 42 matter. 04916_ Acquired Mak. Hammer. 04933_ Y-64 Sentinel: "INTERCEPTING UNREGISTERED DERELICT." Map ----- +----------------------------------------------------+ | | | | | | | ?????????????????????????????????????????????????? | | ?????????????????????????????????????????????????? | | ?????????????????????????????????????????????????? | | ?????????????????????????????????????????????????? | | ?????????????????????????????????????????????????? | | ?????????????????????????????????????????????????? | | ?????????????????????????????????????????????????? | | ?????????????????????????????????????????????????? | | ?????????????????????????????????????????????????? | | ?????????????????????????????????????????????????? | | ??????????????????????????????????????????#####??? | | ?????????????????????????????????????????## ##?? | | ?????????????????????????????????????????# ##? | | ?????????????????????????????????????????# #? | | ?????????????????????????????????????????# #? | | ??????????????###?####?????????###???????## ## | | ?????????????## ### ##???????## #???????### # | | ?????????????# ##?????## ###??????# ## | | ?????????????# ##????# ######## | | ??????????????? ##???## ## #### | | ??????????????? ## ###??## ## ### | | ??????????????? #### #### ## ## | | ??????????????? #??# @ # ## ### ### # | | ??????????????? #?## ### ###?# #?# # | | ??????????????? ### ### #?# #???# #?#! | | ?????????# ### #?## # ### #???# #?#/ | | ?????????## ##?# #??# # #???# ###### | | ??????????# ###### ##?# #???# # | | ####?????## ###########???# # | | ####### s ####?????????##### # | | ## ##???????????## | | $Y ##?????????## | | #?????##### | | ## s ##?????# ## | | ##### $ #######?????## ##? | | #???## #### ##??????????## ##?? | | ####????## ## ##??####???## ##??? | | ?????????## ## #### ##### ######## | | ??????????# ##### ###### # | | ??????????# ###??# ### | | ???????#######????## ## ## ### ## | | ######## ##??????## ### ## #### ### | | ## ######## #?### #### ### | | > ##???####### ### | | ##?????????# ####?# | | ###### #####??????????# #????? | | ## ##???# #####??????????????# #????? | +----------------------------------------------------+ Best States ------------- Heat Dissipation 40 Energy Generation 19 Energy Capacity 315 Matter Stores 300 Matter Capacity 300 Sight Range 22 Robot Scan Range 20 Terrain Scan Range 16 Terrain Scan Density 10 Additional Mass Support 9 Armor Coverage 225 Resistance: KI 20 Evasion (%) 65 Melee Accuracy 16 Offensive Hacking 14 Defensive Hacking 14 Item Schematics ----------------- None Robot Schematics ------------------ None Fabricated ------------ Nothing Repaired ---------- Nothing Studied --------- None Alien Tech Used ----------------- None Achievements -------------- None Challenges ------------ None Game ------ Seed PropulsionDroneInterpreter Manual? 0 Play Time 01:17:22 Cumulative 178.4 hours Start 2026.08.23 @ 15:50:15 End 2026.08.26 @ 03:41:49 Sessions 7 Manual Loads 0 Difficulty Rogue Special Mode None Game No. 193 Rogue 193 Adventurer 0 Explorer 0 Win Type - Total 0 Types 0/0/0/0/0/0/0/0/0/0 Lore% 60 Gallery% 46 Achievement% 35 Wizard Run 0 Options --------- Layout 0 ASCII 0 Keyboard 0 Movement Arrows Keybinds 0 Fullscreen 1 Font 20/SmallcapsGlow Map View 66x50 Zoom Use 1% Tactical HUD 1 Map Filters NONE Filters NONE Steam 1 RUN: ab834927-0f26-463e-a775-cab72a4456e9